fUSD/lending_fUSD_20240216
["ID","MTS","AMOUNT","RATE_DAILY","PERIOD"]
[314253204,1708119123526,-1173.51,0.00051232,7]
[314253205,1708119123535,-604.06,0.00051232,60]
[314253206,1708119123545,-617.63,0.00051232,60]
[314253207,1708119123554,-500.0,0.00051232,60]
[314253208,1708119123563,-500.0,0.00051232,60]
[314253209,1708119123574,-500.0,0.00051232,60]
[314253210,1708119123584,-500.0,0.00051232,60]
[314253211,1708119123593,-500.0,0.00051232,60]
[314253212,1708119123602,-500.0,0.00051232,60]
[314253213,1708119123612,-620.08,0.00051232,60]
[314253214,1708119123621,-511.02,0.00051232,60]
[314253215,1708119123631,-500.0,0.00051232,60]
[314253216,1708119123640,-840.32,0.00051232,2]
[314253217,1708119123650,-500.0,0.00051232,60]
[314253218,1708119123659,-551.0,0.00051232,60]
[314253219,1708119123668,-500.0,0.00051232,60]
[314253220,1708119123677,-500.0,0.00051232,60]
[314253221,1708119123686,-2031.12,0.00051232,2]
[314253222,1708119123695,-500.0,0.00051232,60]
[314253223,1708119123705,-500.0,0.00051232,60]
[314253224,1708119123714,-608.56,0.00051232,60]
[314253225,1708119123724,-500.0,0.00051232,60]
[314253226,1708119123734,-500.0,0.00051232,60]
[314253227,1708119123743,-542.29,0.00051232,60]
[314253228,1708119123752,-500.0,0.00051232,60]
[314253229,1708119123761,-500.0,0.00051232,60]
[314253230,1708119123770,-500.0,0.00051232,60]
[314253231,1708119123778,-500.0,0.00051232,60]
[314253232,1708119123788,-500.0,0.00051232,60]
[314253233,1708119123797,-500.0,0.00051232,60]
[314253234,1708119123807,-500.0,0.00051232,60]
[314253235,1708119123816,-500.0,0.00051232,60]
[314253236,1708119123825,-662.34,0.00051232,60]
[314253237,1708119123834,-500.0,0.00051232,60]
[314253238,1708119123843,-500.0,0.00051232,60]
[314253239,1708119123852,-500.0,0.00051232,60]
[314253240,1708119123862,-500.0,0.00051232,60]
[314253241,1708119123871,-500.0,0.00051232,60]
[314253242,1708119123881,-725.97,0.00051232,60]
[314253243,1708119123890,-500.0,0.00051232,60]
[314253244,1708119123899,-500.0,0.00051232,60]
[314253245,1708119123909,-862.39,0.00051232,60]
[314253246,1708119123921,-529.63411025,0.00051232,60]
[314253247,1708119123931,-500.0,0.00051232,60]
[314253248,1708119123941,-500.0,0.00051232,60]
[314253249,1708119123951,-500.0,0.00051232,60]
[314253250,1708119123962,-500.0,0.00051232,60]
[314253251,1708119123972,-500.0,0.00051232,60]
[314253252,1708119123984,-500.0,0.00051232,60]
[314253253,1708119123994,-500.0,0.00051232,60]
[314253254,1708119124003,-500.0,0.00051232,60]
[314253255,1708119124013,-500.0,0.00051232,60]
[314253256,1708119124023,-693.28,0.00051232,60]
[314253257,1708119124032,-500.0,0.00051232,60]
[314253258,1708119124041,-500.0,0.00051232,60]
[314253259,1708119124051,-500.0,0.00051232,60]
[314253260,1708119124060,-500.0,0.00051232,60]
[314253261,1708119124070,-703.48,0.00051232,60]
[314253262,1708119124080,-500.0,0.00051232,60]
[314253263,1708119124089,-500.0,0.00051232,60]
[314253264,1708119124099,-500.0,0.00051232,60]
[314253265,1708119124109,-566.58,0.00051232,60]
[314253266,1708119124118,-244.53,0.00051232,60]
[314253267,1708119124127,-500.0,0.00051232,60]
[314253268,1708119124137,-500.0,0.00051232,60]
[314253269,1708119124146,-500.0,0.00051232,60]
[314253270,1708119124156,-1032.17,0.00051232,60]
[314253271,1708119124165,-536.17,0.00051232,60]
[314253272,1708119124174,-500.0,0.00051232,60]
[314253273,1708119124184,-500.0,0.00051232,60]
[314253274,1708119124193,-986.8,0.00051232,60]
[314253275,1708119124203,-500.0,0.00051232,60]
[314253276,1708119124212,-500.0,0.00051232,60]
[314253277,1708119124222,-782.04,0.00051232,60]
[314253278,1708119124231,-539.44,0.00051232,60]
[314253279,1708119124241,-500.0,0.00051232,60]
[314253280,1708119124251,-500.0,0.00051232,60]
[314253281,1708119124261,-500.94,0.00051232,60]
[314253282,1708119124271,-207.31837244,0.00051232,60]
[314253283,1708119124281,-500.0,0.00051232,60]
[314253284,1708119124291,-500.0,0.00051232,60]
[314253285,1708119124300,-500.0,0.00051232,60]
[314253286,1708119124309,-500.0,0.00051232,60]
[314253287,1708119124319,-500.0,0.00051232,60]
[314253288,1708119124329,-708.38,0.00051232,60]
[314253289,1708119124338,-500.0,0.00051232,60]
[314253290,1708119124347,-500.0,0.00051232,60]
[314253291,1708119124357,-500.0,0.00051232,60]
[314253292,1708119124368,-515.61,0.00051232,60]
[314253293,1708119124377,-578.51,0.00051232,60]
[314253294,1708119124387,-500.0,0.00051232,60]
[314253295,1708119124396,-500.0,0.00051232,7]
[314253296,1708119124406,-500.0,0.00051232,60]
[314253297,1708119124415,-500.0,0.00051232,60]
[314253298,1708119124424,-500.0,0.00051232,60]
[314253299,1708119124433,-500.0,0.00051232,60]
[314253300,1708119124442,-500.0,0.00051232,60]
[314253301,1708119124451,-940.09,0.00051232,60]
[314253302,1708119124460,-500.0,0.00051232,60]
[314253303,1708119124470,-500.0,0.00051232,60]
[314253304,1708119124479,-500.0,0.00051232,60]
[314253305,1708119124489,-500.0,0.00051232,60]
[314253306,1708119124498,-500.0,0.00051232,60]
[314253307,1708119124507,-500.0,0.00051232,60]
[314253308,1708119124516,-500.0,0.00051232,60]
[314253309,1708119124526,-816.62,0.00051232,60]
[314253310,1708119124535,-500.0,0.00051232,60]
[314253311,1708119124545,-500.0,0.00051232,60]
[314253312,1708119124554,-500.0,0.00051232,60]
[314253313,1708119124563,-500.0,0.00051232,60]
[314253314,1708119124575,-500.0,0.00051232,60]
[314253315,1708119124585,-535.62160626,0.00051232,60]
[314253316,1708119124595,-642.11,0.00051232,60]
[314253317,1708119124604,-351.06128503,0.00051232,60]
[314253318,1708119124614,-500.0,0.00051232,60]
[314253319,1708119124624,-500.0,0.00051232,60]
[314253320,1708119124634,-500.0,0.00051232,60]
[314253321,1708119124644,-500.0,0.00051232,60]
[314253322,1708119124654,-500.0,0.00051232,60]
[314253323,1708119124664,-500.0,0.00051232,60]
[314253324,1708119124673,-500.0,0.00051232,60]
[314253325,1708119124683,-500.0,0.00051232,60]
[314253326,1708119124693,-1167.88,0.00051232,60]
[314253327,1708119124703,-500.0,0.00051232,60]
[314253328,1708119124712,-500.0,0.00051232,60]
[314253329,1708119124723,-500.0,0.00051232,60]
[314253330,1708119124732,-500.0,0.00051232,60]
[314253331,1708119124741,-851.65,0.00051232,60]
[314253332,1708119124751,-500.0,0.00051232,60]
[314253333,1708119124761,-500.0,0.00051232,60]
[314253334,1708119124771,-500.0,0.00051232,60]
[314253335,1708119124783,-500.0,0.00051232,60]
[314253336,1708119124793,-500.0,0.00051232,60]
[314253337,1708119124804,-2216.52,0.00051232,60]
[314253338,1708119124815,-500.0,0.00051232,60]
[314253339,1708119124824,-500.0,0.00051232,60]
[314253340,1708119124834,-500.0,0.00051232,60]
[314253341,1708119124843,-500.0,0.00051232,60]
[314253342,1708119124853,-500.0,0.00051232,60]
[314253343,1708119124863,-500.0,0.00051232,60]
[314253344,1708119124874,-500.0,0.00051232,60]
[314253345,1708119124884,-694.71,0.00051232,60]
[314253346,1708119124893,-500.0,0.00051232,60]
[314253347,1708119124903,-500.0,0.00051232,60]
[314253348,1708119124913,-500.0,0.00051232,60]
[314253349,1708119124928,-500.0,0.00051232,60]
[314253350,1708119124938,-500.0,0.00051232,60]
[314253351,1708119124948,-500.0,0.00051232,60]
[314253352,1708119124957,-500.0,0.00051232,60]
[314253353,1708119124969,-2871.6,0.00051232,60]
[314253354,1708119124980,-500.0,0.00051232,60]
[314253355,1708119124990,-500.0,0.00051232,60]
[314253356,1708119125000,-500.0,0.00051232,60]
[314253357,1708119125010,-562.06,0.00051232,60]
[314253358,1708119125019,-500.0,0.00051232,60]
[314253359,1708119125029,-589.85,0.00051232,60]
[314253360,1708119125038,-500.0,0.00051232,60]
[314253361,1708119125047,-1083.11,0.00051232,60]
[314253362,1708119125057,-500.0,0.00051232,60]
[314253363,1708119125066,-500.0,0.00051232,60]
[314253364,1708119125076,-500.0,0.00051232,60]
[314253365,1708119125085,-2574.8,0.00051232,60]
[314253366,1708119125095,-150.0,0.00051232,60]
[314253367,1708119125104,-500.0,0.00051232,60]
[314253368,1708119125114,-500.0,0.00051232,60]
[314253369,1708119125124,-500.0,0.00051232,60]
[314253370,1708119125135,-500.0,0.00051232,60]
[314253371,1708119125145,-890.17,0.00051232,60]
[314253372,1708119125155,-1244.45,0.00051232,60]
[314253373,1708119125166,-500.0,0.00051232,60]
[314253374,1708119125176,-500.0,0.00051232,60]
[314253375,1708119125186,-500.0,0.00051232,60]
[314253376,1708119125196,-500.0,0.00051232,60]
[314253377,1708119125207,-500.0,0.00051232,60]
[314253378,1708119125217,-250.0,0.00051232,60]
[314253379,1708119125228,-588.9,0.00051232,60]
[314253380,1708119125237,-1983.03,0.00051232,60]
[314253381,1708119125247,-500.0,0.00051232,60]
[314253382,1708119125257,-500.0,0.00051232,60]
[314253383,1708119125266,-500.0,0.00051232,60]
[314253384,1708119125276,-500.0,0.00051232,60]
[314253385,1708119125285,-1068.84,0.00051232,60]
[314253386,1708119125295,-742.37,0.00051232,60]
[314253387,1708119125304,-4400.67,0.00051232,60]
[314253388,1708119125314,-803.55,0.00051232,60]
[314253389,1708119125324,-500.0,0.00051232,60]
[314253390,1708119125334,-821.93,0.00051232,60]
[314253391,1708119125344,-500.0,0.00051232,60]
[314253392,1708119125355,-538.03,0.00051232,60]
[314253393,1708119125365,-500.0,0.00051232,60]
[314253394,1708119125375,-500.0,0.00051232,60]
[314253395,1708119125384,-500.0,0.00051232,60]
[314253396,1708119125394,-500.0,0.00051232,60]
[314253397,1708119125404,-3625.09,0.00051232,60]
[314253398,1708119125413,-500.0,0.00051232,60]
[314253399,1708119125423,-964.44,0.00051232,60]
[314253400,1708119125433,-500.0,0.00051232,60]
[314253401,1708119125443,-1492.92,0.00051232,60]
[314253402,1708119125453,-2046.77,0.00051232,60]
[314253403,1708119125462,-500.0,0.00051232,60]
[314253404,1708119125471,-500.0,0.00051232,60]
[314253405,1708119125481,-500.0,0.00051232,60]
[314253406,1708119125490,-802.5,0.00051232,60]
[314253407,1708119125500,-500.0,0.00051232,60]
[314253408,1708119125510,-610.16,0.00051232,60]
[314253409,1708119125520,-500.0,0.00051232,60]
[314253410,1708119125531,-500.0,0.00051232,60]
[314253411,1708119125544,-500.0,0.00051232,60]
[314253412,1708119125586,-1066.34,0.00051232,60]
[314253413,1708119125596,-500.0,0.00051232,60]
[314253414,1708119125605,-797.01,0.00051232,60]
[314253415,1708119125615,-500.0,0.00051232,60]
[314253416,1708119125625,-729.2,0.00051232,60]
[314253417,1708119125634,-3199.37,0.00051232,60]
[314253418,1708119125643,-500.0,0.00051232,60]
[314253419,1708119125653,-500.0,0.00051232,60]
[314253420,1708119125663,-24352.15,0.00051232,60]
[314253421,1708119125673,-1397.78,0.00051232,60]
[314253422,1708119125683,-500.0,0.00051232,60]
[314253423,1708119125693,-500.0,0.00051232,60]
[314253424,1708119125703,-500.0,0.00051232,60]
[314253425,1708119125712,-2225.09,0.00051232,60]
[314253426,1708119125723,-500.0,0.00051232,60]
[314253427,1708119125734,-500.0,0.00051232,60]
[314253428,1708119125743,-3059.93,0.00051232,60]
[314253429,1708119125753,-663.32,0.00051232,60]
[314253430,1708119125763,-559.03,0.00051232,60]
[314253431,1708119125773,-500.0,0.00051232,60]
[314253432,1708119125783,-500.0,0.00051232,60]
[314253433,1708119125793,-500.0,0.00051232,60]
[314253434,1708119125802,-500.0,0.00051232,60]
[314253435,1708119125812,-500.0,0.00051232,60]
[314253436,1708119125822,-500.0,0.00051232,60]
[314253437,1708119125831,-3189.76,0.00051232,60]
[314253438,1708119125841,-2572.92,0.00051232,60]
[314253439,1708119125851,-1075.21,0.00051232,60]
[314253440,1708119125860,-500.0,0.00051232,60]
[314253441,1708119125870,-500.0,0.00051232,60]
[314253442,1708119125880,-500.0,0.00051232,60]
[314253443,1708119125890,-4525.95,0.00051232,60]
[314253444,1708119125900,-648.82,0.00051232,60]
[314253445,1708119125910,-5354.43,0.00051232,60]
[314253446,1708119125924,-703.45,0.00051232,60]
[314253447,1708119125934,-1211.83,0.00051232,60]
[314253448,1708119125944,-500.0,0.00051232,60]
[314253449,1708119125955,-871.55,0.00051232,60]
[314253450,1708119125966,-609.42,0.00051232,60]
[314253451,1708119125976,-1231.04,0.00051232,60]
[314253452,1708119125987,-737.52,0.00051232,60]
[314253453,1708119125998,-591.52,0.00051232,60]
[314253454,1708119126007,-719.76,0.00051232,60]
[314253455,1708119126017,-2765.99,0.00051232,60]
[314253456,1708119126027,-500.0,0.00051232,60]
[314253457,1708119126037,-500.0,0.00051232,60]
[314253458,1708119126047,-1575.91,0.00051232,60]
[314253459,1708119126057,-500.0,0.00051232,60]
[314253460,1708119126067,-868.38,0.00051232,60]
[314253461,1708119126077,-9546.8,0.00051232,60]
[314253462,1708119126087,-606.97,0.00051232,60]
[314253463,1708119126096,-2411.87,0.00051232,60]
[314253464,1708119126107,-500.0,0.00051232,60]
[314253465,1708119126117,-500.0,0.00051232,60]
[314253466,1708119126127,-500.0,0.00051232,60]
[314253467,1708119126137,-570.56,0.00051232,60]
[314253468,1708119126151,-500.0,0.00051232,60]
[314253469,1708119126161,-1028.79,0.00051232,60]
[314253470,1708119126171,-1081.67,0.00051232,60]
[314253471,1708119126181,-500.0,0.00051232,60]
[314253472,1708119126190,-500.0,0.00051232,60]
[314253473,1708119126200,-8340.13,0.00051232,60]
[314253474,1708119126210,-500.0,0.00051232,60]
[314253475,1708119126219,-500.0,0.00051232,60]
[314253476,1708119126229,-500.0,0.00051232,60]
[314253477,1708119126238,-6395.6,0.00051232,14]
[314253478,1708119126248,-500.0,0.00051232,60]
[314253479,1708119126257,-500.0,0.00051232,60]
[314253480,1708119126266,-500.0,0.00051232,60]
[314253481,1708119126276,-500.0,0.00051232,60]
[314253482,1708119126286,-2287.27,0.00051232,60]
[314253483,1708119126296,-392.50109217,0.00051232,7]
[314253484,1708119126305,-500.0,0.00051232,60]
[314253485,1708119126314,-500.0,0.00051232,60]
[314253486,1708119126327,-542.74,0.00051232,60]
[314253487,1708119126336,-1517.81,0.00051232,60]
[314253488,1708119126345,-500.0,0.00051232,60]
[314253489,1708119126355,-520.3,0.00051232,60]
[314253490,1708119126365,-7477.21,0.00051232,60]
[314253491,1708119126375,-500.0,0.00051232,60]
[314253492,1708119126385,-714.64,0.00051232,60]
[314253493,1708119126395,-500.0,0.00051232,60]
[314253494,1708119126404,-630.12,0.00051232,60]
[314253495,1708119126414,-500.0,0.00051232,60]
[314253496,1708119126424,-500.0,0.00051232,60]
[314253497,1708119126433,-722.94,0.00051232,60]
[314253498,1708119126443,-910.24,0.00051232,60]
[314253499,1708119126452,-3306.89,0.00051232,60]
[314253500,1708119126462,-500.0,0.00051232,60]
[314253501,1708119126473,-544.82,0.00051232,60]
[314253502,1708119126484,-5810.7,0.00051232,60]
[314253503,1708119126493,-2333.25,0.00051232,60]
[314253504,1708119126503,-500.0,0.00051232,60]
[314253505,1708119126512,-1821.43,0.00051232,60]
[314253506,1708119126522,-500.0,0.00051232,60]
[314253507,1708119126531,-1107.39,0.00051232,60]
[314253508,1708119126540,-500.0,0.00051232,60]
[314253509,1708119126549,-3684.25,0.00051232,60]
[314253510,1708119126559,-500.0,0.00051232,60]
[314253511,1708119126568,-583.02,0.00051232,60]
[314253512,1708119126579,-500.0,0.00051232,60]
[314253513,1708119126589,-530.67,0.00051232,60]
[314253514,1708119126598,-673.09,0.00051232,60]
[314253515,1708119126608,-500.0,0.00051232,60]
[314253516,1708119126617,-500.0,0.00051232,60]
[314253517,1708119126627,-500.0,0.00051232,60]
[314253518,1708119126636,-500.0,0.00051232,60]
[314253519,1708119126646,-868.96,0.00051232,60]
[314253520,1708119126655,-500.0,0.00051232,60]
[314253521,1708119126665,-500.0,0.00051232,60]
[314253522,1708119126675,-688.48,0.00051232,60]
[314253523,1708119126685,-2624.63,0.00051232,60]
[314253524,1708119126695,-500.0,0.00051232,60]
[314253525,1708119126705,-500.0,0.00051232,60]
[314253526,1708119126715,-842.25,0.00051232,60]
[314253527,1708119126724,-500.0,0.00051232,60]
[314253528,1708119126734,-905.88,0.00051232,60]
[314253529,1708119126743,-500.0,0.00051232,60]
[314253530,1708119126752,-500.0,0.00051232,60]
[314253531,1708119126762,-1344.54,0.00051232,60]
[314253532,1708119126771,-500.0,0.00051232,60]
[314253533,1708119126781,-842.36,0.00051232,2]
[314253534,1708119126790,-2942.14,0.00051232,60]
[314253535,1708119126800,-505.82,0.00051232,60]
[314253536,1708119126809,-500.0,0.00051232,60]
[314253537,1708119126819,-2570.64,0.00051232,60]
[314253538,1708119126829,-2688.02,0.00051232,60]
[314253539,1708119126838,-2260.09,0.00051232,60]
[314253540,1708119126848,-500.0,0.00051232,60]
[314253541,1708119126857,-500.0,0.00051232,60]
[314253542,1708119126867,-716.26,0.00051232,60]
[314253543,1708119126877,-924.33,0.00051232,60]
[314253544,1708119126887,-500.0,0.00051232,60]
[314253545,1708119126897,-657.39,0.00051232,60]
[314253546,1708119126907,-500.0,0.00051232,60]
[314253547,1708119126920,-2023.51,0.00051232,60]
[314253548,1708119126931,-1625.46,0.00051232,60]
[314253549,1708119126941,-506.3,0.00051232,60]
[314253550,1708119126951,-500.0,0.00051232,60]
[314253551,1708119126962,-953.19,0.00051232,60]
[314253552,1708119126971,-680.83,0.00051232,60]
[314253553,1708119126983,-500.0,0.00051232,60]
[314253554,1708119126993,-1719.81,0.00051232,60]
[314253555,1708119127004,-586.01,0.00051232,60]
[314253556,1708119127014,-562.1,0.00051232,60]
[314253557,1708119127024,-582.82,0.00051232,60]
[314253558,1708119127034,-659.84,0.00051232,60]
[314253559,1708119127045,-4202.04,0.00051232,60]
[314253560,1708119127054,-7068.33,0.00051232,60]
[314253561,1708119127065,-500.0,0.00051232,60]
[314253562,1708119127075,-500.0,0.00051232,60]
[314253563,1708119127085,-500.0,0.00051232,60]
[314253564,1708119127095,-2643.96,0.00051232,60]
[314253565,1708119127105,-500.0,0.00051232,60]
[314253566,1708119127114,-500.0,0.00051232,60]
[314253567,1708119127124,-600.0,0.00051232,60]
[314253568,1708119127135,-1183.13,0.00051232,60]
[314253569,1708119127145,-500.0,0.00051232,60]
[314253570,1708119127156,-1949.14,0.00051232,60]
[314253571,1708119127166,-500.0,0.00051232,60]
[314253572,1708119127175,-566.21,0.00051232,60]
[314253573,1708119127186,-1927.89,0.00051232,60]
[314253574,1708119127195,-500.0,0.00051232,60]
[314253575,1708119127205,-699.96,0.00051232,60]
[314253576,1708119127215,-500.0,0.00051232,60]
[314253577,1708119127226,-3348.01,0.00051232,60]
[314253578,1708119127236,-1200.81,0.00051232,60]
[314253579,1708119127245,-500.0,0.00051232,60]
[314253580,1708119127255,-1872.95,0.00051232,60]
[314253581,1708119127266,-529.58,0.00051232,60]
[314253582,1708119127276,-716.71,0.00051232,60]
[314253583,1708119127286,-693.17,0.00051232,60]
[314253584,1708119127297,-500.0,0.00051232,60]
[314253585,1708119127308,-1099.89,0.00051232,60]
[314253586,1708119127318,-500.0,0.00051232,60]
[314253587,1708119127329,-500.0,0.00051232,60]
[314253588,1708119127339,-552.07,0.00051232,60]
[314253589,1708119127349,-500.0,0.00051232,60]
[314253590,1708119127359,-1791.39,0.00051232,60]
[314253591,1708119127369,-500.0,0.00051232,60]
[314253592,1708119127379,-573.51,0.00051232,60]
[314253593,1708119127389,-500.0,0.00051232,60]
[314253594,1708119127399,-1055.53,0.00051232,60]
[314253595,1708119127409,-500.0,0.00051232,60]
[314253596,1708119127419,-777.88,0.00051232,60]
[314253597,1708119127429,-722.67,0.00051232,60]
[314253598,1708119127440,-1887.23,0.00051232,60]
[314253599,1708119127452,-500.0,0.00051232,60]
[314253600,1708119127463,-500.0,0.00051232,60]
[314253601,1708119127475,-674.89,0.00051232,60]
[314253602,1708119127485,-2198.11,0.00051232,60]
[314253603,1708119127494,-8115.72,0.00051232,60]
[314253604,1708119127506,-701.75,0.00051232,60]
[314253605,1708119127517,-500.0,0.00051232,60]
[314253606,1708119127526,-779.02,0.00051232,60]
[314253607,1708119127536,-500.0,0.00051232,60]
[314253608,1708119127548,-1002.39,0.00051232,60]
[314253609,1708119127558,-500.0,0.00051232,60]
[314253610,1708119127570,-1272.04,0.00051232,60]
[314253611,1708119127581,-1115.22,0.00051232,60]
[314253612,1708119127593,-500.0,0.00051232,60]
[314253613,1708119127603,-505.42,0.00051232,60]
[314253614,1708119127613,-3301.31,0.00051232,60]
[314253615,1708119127624,-626.52,0.00051232,60]
[314253616,1708119127636,-500.0,0.00051232,60]
[314253617,1708119127646,-500.0,0.00051232,60]
[314253618,1708119127656,-309.35,0.00051232,60]
[314253619,1708119127668,-500.0,0.00051232,60]
[314253620,1708119127678,-500.0,0.00051232,60]
[314253621,1708119127689,-1972.92,0.00051232,60]
[314253622,1708119127700,-500.0,0.00051232,60]
[314253623,1708119127710,-991.91,0.00051232,60]
[314253624,1708119127719,-914.46,0.00051232,60]
[314253625,1708119127730,-500.0,0.00051232,60]
[314253626,1708119127741,-536.93,0.00051232,60]
[314253627,1708119127751,-500.0,0.00051232,60]
[314253628,1708119127761,-500.0,0.00051232,60]
[314253629,1708119127771,-500.0,0.00051232,60]
[314253630,1708119127782,-500.0,0.00051232,60]
[314253631,1708119127792,-500.0,0.00051232,60]
[314253632,1708119127802,-6496.83,0.00051232,60]
[314253633,1708119127812,-500.0,0.00051232,2]
[314253634,1708119127822,-500.0,0.00051232,60]
[314253635,1708119127831,-1000.0,0.00051232,10]
[314253636,1708119127842,-446.86408125,0.00051256,30]
[314253637,1708119127851,-182.46208837,0.00051256,30]
[314253638,1708119127861,-288.21600538,0.00051256,30]
[314253639,1708119127871,-332.83372129,0.00051256,30]
[314253640,1708119127881,-325.64438562,0.00051256,30]
[314253641,1708119127890,-311.0,0.00051259,60]
[314253642,1708119127900,-480.04,0.00051324,2]
[314253643,1708119127910,-2297.1529872,0.00051331,2]
[314253644,1708119127924,-12024.7392822,0.00051331,2]
[314253645,1708119127934,-2358.21576,0.00051331,2]
[314253646,1708119127944,-254.52395784,0.00051344,11]
[314253647,1708119127954,-172.94189201,0.00051344,11]
[314253648,1708119127965,-5857.8,0.00051392,117]
[314253649,1708119127976,-10000.0,0.000514,120]
[314253650,1708119127986,-299.0,0.000514,40]
[314253651,1708119127999,-310.44,0.0005142,2]
[314253652,1708119128009,-174.0,0.00051452,28]
[314253653,1708119128019,-5057.3075232,0.00051471,2]
[314253654,1708119128029,-87566.2051724,0.00051471,2]
[314253655,1708119128039,-151.0217,0.00051498,39]
[314253656,1708119128048,-5000.0,0.000515,60]
[314253657,1708119128058,-3000.0,0.000515,45]
[314253658,1708119128068,-480.78587878,0.000515,2]
[314253659,1708119128078,-5000.0,0.000515,60]
[314253660,1708119128088,-3000.0,0.000515,45]
[314253661,1708119128098,-200.0,0.000515,29]
[314253662,1708119128109,-200.0,0.000515,29]
[314253663,1708119128119,-12548.822606,0.00051506,30]
[314253664,1708119128129,-3084.689488,0.00051506,120]
[314253665,1708119128139,-449.942138,0.00051506,30]
[314253666,1708119128150,-3600.618435,0.00051506,120]
[314253667,1708119128159,-1296.946474,0.00051506,30]
[314253668,1708119128170,-22816.864071,0.00051506,30]
[314253669,1708119128180,-2236.399879,0.00051506,120]
[314253670,1708119128191,-733.524091,0.00051506,30]
[314253671,1708119128201,-3626.979749,0.00051506,30]
[314253672,1708119128211,-539.627874,0.00051506,30]
[314253673,1708119128221,-364.662208,0.00051506,30]
[314253674,1708119128232,-2415.472736,0.00051506,30]
[314253675,1708119128242,-637.147671,0.00051506,120]
[314253676,1708119128251,-569.015732,0.00051506,30]
[314253677,1708119128261,-1652.842868,0.00051506,30]
[314253678,1708119128272,-446.00337,0.00051506,120]
[314253679,1708119128283,-845.095674,0.00051506,30]
[314253680,1708119128293,-595.497544,0.00051506,30]
[314253681,1708119128302,-557.504212,0.00051506,120]
[314253682,1708119128312,-6788.183485,0.00051506,30]
[314253683,1708119128322,-780.505897,0.00051506,120]
[314253684,1708119128331,-5019.176642,0.00051506,30]
[314253685,1708119128341,-343.733648,0.00051506,120]
[314253686,1708119128350,-345.637345,0.00051506,30]
[314253687,1708119128360,-2408.657049,0.00051506,30]
[314253688,1708119128369,-535.204043,0.00051506,120]
[314253689,1708119128379,-1685.799762,0.00051506,30]
[314253690,1708119128388,-500.0,0.00051506,60]
[314253691,1708119128398,-500.0,0.00051506,60]
[314253692,1708119128408,-500.0,0.00051506,60]
[314253693,1708119128418,-500.0,0.00051506,60]
[314253694,1708119128427,-500.0,0.00051506,60]
[314253695,1708119128437,-500.0,0.00051506,60]
[314253696,1708119128446,-500.0,0.00051506,60]
[314253697,1708119128457,-500.0,0.00051506,60]
[314253698,1708119128466,-500.0,0.00051506,60]
[314253699,1708119128476,-500.0,0.00051506,60]
[314253700,1708119128486,-500.0,0.00051506,60]
[314253701,1708119128495,-500.0,0.00051506,60]
[314253702,1708119128506,-500.0,0.00051506,60]
[314253703,1708119128516,-500.0,0.00051506,60]